Cogmind - Beta 16 @@@ ROGUE MODE // 2025.10.25 @ 00:12:49 Player: Great Strength True Martial Result: Destroyed by as-41750 with Assembled Blade Performance ------------- Evolutions (0) 0 Regions Visited (2) 400 Robots Destroyed (20) 100 Value Destroyed (534) 534 Prototype IDs (0) 0 Alien Tech Used (0) 0 Bonus (0) 0 TOTAL SCORE: 1034 Bonus ------- None Cogmind --------- Core Integrity 0/250 Matter 286/300 Energy 100/100 System Corruption 5% Temperature Cool (0) Movement Treading (160) Location -10/Mines Parts ------- > --- POWER (1) -------- (None) > --- PROPULSION (2) --- Light Treads > --- UTILITY (2) ------ Small Storage Unit > --- WEAPON (2) ------- Light Assault Rifle > --- INVENTORY (8) ---- Light Nuclear Core Light Nuclear Core Aluminum Leg Aluminum Leg Structural Scanner ECM Suite Hacking Suite Peak State ------------ > --- POWER ------------ Ion Engine > --- PROPULSION ------- Light Treads Light Treads > --- UTILITY ---------- Small Storage Unit Light Armor Plating > --- WEAPON ----------- Light Assault Rifle Light Assault Rifle > --- INVENTORY -------- Ion Engine Light Nuclear Core Light Nuclear Core Aluminum Leg Aluminum Leg Structural Scanner ECM Suite [Rating: 8] Favorites ----------- Power Ion Engine Engine Ion Engine Propulsion Light Treads Treads Light Treads Utility Small Storage Unit Storage Small Storage Unit Protection Light Armor Plating Weapon Light Assault Rifle Ballistic Gun Light Assault Rifle Build | -11 -10 -10 ------- Run | Yrd Mat Min Slots Evolved . | . . . Power . | . . . Propulsion . | . . . Utility . | . . . Weapon . | . . . Parts Attached 11 | 6 5 . Power 3 | 1 2 . Engine 3 | 1 2 . Core . | . . . Reactor . | . . . Propulsion 3 | 2 1 . Treads 3 | 2 1 . Leg . | . . . Wheel . | . . . Hover . | . . . Flight . | . . . Utility 2 | 1 1 . Device . | . . . Storage 1 | 1 . . Processor . | . . . Hackware . | . . . Protection 1 | . 1 . Artifact . | . . . Weapon 3 | 2 1 . Energy Gun . | . . . Energy Cannon . | . . . Ballistic Gun 3 | 2 1 . Ballistic Cannon . | . . . Launcher . | . . . Special Weapon . | . . . Impact Weapon . | . . . Slashing Weapon . | . . . Piercing Weapon . | . . . Special Melee Weapon . | . . . Unidentified Prototypes . | . . . Parts Lost 4 | . 1 3 Power 1 | . . 1 Propulsion . | . . . Utility 1 | . . 1 Weapon 2 | . 1 1 Highest Loss Streak 3 | . 1 3 To Critical Strikes . | . . . Average Backups 6 | 2 7 7 Power 2 | . 2 2 Propulsion 2 | 1 2 2 Utility 2 | . 2 3 Weapon . | . . . Tool/Special . | . . . Unused Backups 7 | . . 7 Power 2 | . . 2 Propulsion 2 | . . 2 Utility 3 | . . 3 Weapon . | . . . Tool/Special . | . . . Average Slot Usage (%) 93 | . 92 97 Engine 13 | . 14 13 Treads 27 | . 28 27 Storage 14 | . 14 14 Protection 8 | . 7 12 Ballistic Gun 27 | . 27 28 Peak Build Rating 8 | 6 8 8 Average Rating 7 | 4 7 7 On Entrance 4 | . 6 8 Avg Prop Armor Cover (%) . | . . . Naked Turns . | . . . Heaviest Build 15 | 13 15 15 Greatest Support 40 | 40 40 40 Greatest Overweight (x) . | . . . Average Overweight (x) . | . . . Largest Inventory Capacity 8 | 8 8 8 Average Capacity 7 | 6 8 8 Most Carried 8 | 4 8 7 Average Carried 6 | 2 7 7 Final Capacity 8 | 8 8 8 Final Carried 7 | 4 7 7 Class Distribution -------------------- 100% | Mutant Dominant Class ---------------- Mutant | -10/Materials Mutant | -10/Mines Resources | -11 -10 -10 ----------- Run | Yrd Mat Min Matter Collected 556 | 198 358 . Remotely . | . . . Salvage Created 756 | . 756 . Parts 42 | . 42 . Haulers Intercepted 1 | . 1 . Recyclers Shooed . | . . . Parts Field Recycled . | . . . Retrieved Matter . | . . . Parts Self-Destructed . | . . . Prevented . | . . . Parts Restored . | . . . Kills | -11 -10 -10 ------- Run | Yrd Mat Min Combat Hostiles Destroyed 15 | . 15 . Guns 15 | . 15 . Classes Destroyed 8 | . 8 . Builder 1 | . 1 . Hauler 1 | . 1 . Recycler 1 | . 1 . Operator 1 | . 1 . Watcher 1 | . 1 . Swarmer 3 | . 3 . Grunt 10 | . 10 . Subdweller 2 | . 2 . Best Kill Streak 2 | . 2 . Combat Bots Only 2 | . 2 . Max Kills in Single Turn 1 | . 1 . Gunslinging . | . . . Exploded . | . . . Melee . | . . . Uniques/NPCs Destroyed . | . . . Combat | -11 -10 -10 -------- Run | Yrd Mat Min Hostile Shots Fired 97 | . 78 19 Missed 20 | . 16 4 Hits 77 | . 62 15 Melee 9 | . . 9 Projectile 68 | . 62 6 Critical Strikes 1 | . . 1 Damage Taken 1125 | . 775 350 Core 259 | . 128 131 Absorbed by Shields . | . . . Core Remaining (%) 100 | 100 . . Volleys Fired 84 | . 80 4 Largest 2 | . 2 2 Hottest 40 | . 40 40 Shots Fired 168 | . 161 7 Gun 168 | . 161 7 Cannon . | . . . Launcher . | . . . Special . | . . . Kinetic 168 | . 161 7 Thermal . | . . . Explosive . | . . . Electromagnetic . | . . . Robot Hit Streak 12 | . 12 9 Robot Miss Streak 3 | . 3 2 Penetration Max . | . . . Secondary Targets . | . . . Shots Hit Robots 117 | . 112 5 Core Hits 44 | . 43 1 Critical Kills 2 | . 2 . Critical Parts Destroyed 1 | . 1 . Critical Strikes 3 | . 3 . Destroy 3 | . 3 . Melee Attacks . | . . . Impact . | . . . Slashing . | . . . Piercing . | . . . Sneak Attacks . | . . . Combat Hostiles . | . . . Follow-up Attacks . | . . . Damage Inflicted 1082 | . 1038 44 Guns 1082 | . 1038 44 Cannons . | . . . Explosions . | . . . Melee . | . . . Ramming . | . . . Kinetic 1082 | . 1038 44 Thermal . | . . . Explosive . | . . . Electromagnetic . | . . . Impact . | . . . Slashing . | . . . Piercing . | . . . Highest Corruption 5 | . 5 5 Average Corruption 3 | . 2 5 Corruption Purged . | . . . Corruption Blocked . | . . . Effects 23 | . 17 6 Message Errors 7 | . 5 2 Matter Fused 5 | . 2 3 Heat Flow Errors 3 | . 3 . Energy Discharges 2 | . 2 . Parts Fused 1 | . 1 . Data Loss (minor) 3 | . 2 1 Data Loss (major) 1 | . 1 . Misfires 1 | . 1 . Overload Shots . | . . . Overflow Damage . | . . . Projectiles . | . . . Explosions . | . . . Melee . | . . . Knockbacks . | . . . Impact . | . . . Kinetic . | . . . Secondary . | . . . Self-Inflicted Damage . | . . . Shots . | . . . Rammed . | . . . Targets Rammed . | . . . Kicked . | . . . Crushed . | . . . Highest Temperature 279 | . 279 15 Average Temperature 40 | . 41 13 Received Heat Transfer 318 | . 258 60 Siege Activations . | . . . Martial Activations . | . . . Shielding Activations . | . . . Robots Disrupted . | . . . Combat Hostiles . | . . . Robots Corrupted . | . . . Combat Hostiles . | . . . Parts Fried . | . . . Impact Corruptions . | . . . Robots Melted . | . . . Combat Hostiles . | . . . Parts Melted . | . . . Heat Transferred . | . . . Parts Sabotaged . | . . . Parts Stolen . | . . . Parts Stripped . | . . . Power Chain Reactions . | . . . Alert | -11 -10 -10 ------- Run | Yrd Mat Min Maximum Alert Level . | . . . Low Security (%) 100 | 100 100 100 Level 1 . | . . . Level 2 . | . . . Level 3 . | . . . Level 4 . | . . . Level 5 . | . . . High Security . | . . . Max Security . | . . . Peak Influence 116 | . 116 13 Initial 13 | . . 13 Average 41 | . 51 1 Influence Increases 380 | . 380 . Destroy 0b10 Robot/C 260 | . 260 . Destroy 0b10 Robot/NC 25 | . 25 . Destroy Leader 64 | . 64 . Successful Hack 16 | . 16 . Lose Combat Pursuer 15 | . 15 . Influence Decreases 380 | . 345 35 Entered New Map 22 | . . 22 Time Decay 348 | . 335 13 Lost Part 10 | . 10 . Squads Dispatched 2 | . 2 . Investigation . | . . . Extermination . | . . . Reinforcement 2 | . 2 . Assault . | . . . Garrison . | . . . Intercept . | . . . Searches Triggered . | . . . Construction Impeded . | . . . Haulers Reinforced . | . . . Active Scanning Responses . | . . . Cargo Convoy Interrupts . | . . . Stealth | -11 -10 -10 --------- Run | Yrd Mat Min Distress Signals 2 | . 2 . Communications Jammed . | . . . Distress Signals . | . . . Times Spotted 29 | . 25 4 Peak Tracking Total 5 | . 4 5 Tactical Retreats 3 | . 2 1 Traps | -11 -10 -10 ------- Run | Yrd Mat Min Traps Triggered 4 | . 4 . Indirectly . | . . . Trap Hack Attempts . | . . . Triggered . | . . . Disarmed . | . . . Reprogrammed . | . . . Reused . | . . . Traps Extracted . | . . . Installed . | . . . Triggered . | . . . Machines | -11 -10 -10 ---------- Run | Yrd Mat Min Machines Disabled . | . . . Max in Single Turn . | . . . Machines Repaired . | . . . Machines Dismantled . | . . . Machines Sabotaged . | . . . Overloaded Fab Kills . | . . . Hacking | -11 -10 -10 --------- Run | Yrd Mat Min Machines Accessed 4 | . 4 . Terminals 3 | . 3 . Fabricators . | . . . Repair Stations . | . . . Recycling Units 1 | . 1 . Scanalyzers . | . . . Garrison Access . | . . . Total Hacks 8 | . 8 . Successful 4 | . 4 . Failed 4 | . 4 . Catastrophic . | . . . Database Lockouts . | . . . Manual 4 | . 4 . Terminals 7 | . 7 . Fabricators . | . . . Repair Stations . | . . . Recycling Units 1 | . 1 . Scanalyzers . | . . . Garrison Access . | . . . Terminal Hacks 2 | . 2 . Hauler Manifests 2 | . 2 . Fabricator Hacks . | . . . Repair Station Hacks . | . . . Recycling Unit Hacks 1 | . 1 . Report Inventory 1 | . 1 . Scanalyzer . | . . . Garrison Access Hacks . | . . . Unauthorized Hacks 1 | . 1 . Terminals 1 | . 1 . Operators 1 | . 1 . Fabricators . | . . . Repair Stations . | . . . Recycling Units . | . . . Scanalyzers . | . . . Garrison Access . | . . . Data Cores Recovered . | . . . Used . | . . . Hacking Detections 1 | . 1 . Full Trace Events 1 | . 1 . Feedback Events . | . . . Feedback Blocked . | . . . Robot Schematics Acquired . | . . . Robots Built . | . . . Authchips . | . . . Time . | . . . Total Robot Build Rating . | . . . Part Schematics Acquired . | . . . Parts Built . | . . . Authchips . | . . . Time . | . . . Total Part Build Rating . | . . . Part Studies Acquired . | . . . Parts Repaired . | . . . Time . | . . . Parts Recycled . | . . . Recycled Matter . | . . . Retrieved Matter . | . . . Retrieved Components . | . . . Parts Scanalyzed . | . . . Part Schematics Acquired . | . . . Parts Damaged . | . . . Bothacking | -11 -10 -10 ------------ Run | Yrd Mat Min Used RIF Installer . | . . . Robots Hacked . | . . . Non-combat . | . . . Combat . | . . . Robot Hacks Applied . | . . . Relay Couplers Released . | . . . Fabnet Peak Effective % . | . . . Robots Rewired . | . . . Allies Hacked . | . . . Hacks Repelled . | . . . Allies | -11 -10 -10 -------- Run | Yrd Mat Min Total Allies . | . . . Largest Group . | . . . Highest-Rated Group . | . . . Highest-Rated Ally . | . . . Total Orders . | . . . Ally Attacks . | . . . Total Damage . | . . . Kills . | . . . Allies Corrupted . | . . . Allies Melted . | . . . Intel | -11 -10 -10 ------- Run | Yrd Mat Min Active Infowar (turns) . | . . . Robot Analysis Total . | . . . Derelict Logs Recovered . | . . . Drone Launches . | . . . Drone Recoveries . | . . . Exploration | -11 -10 -10 ------------- Run | Yrd Mat Min Turns Passed 1342 | 78 1078 186 Spaces Moved 634 | 43 481 110 Core 2 | 2 . . Treads 632 | 41 481 110 Legs . | . . . Wheels . | . . . Hover . | . . . Flight . | . . . Fastest Speed 50 | 50 160 160 Average Speed 159 | 154 160 160 Slowest Speed 160 | 160 160 160 Overloaded Moves . | . . . Propulsion Burnouts . | . . . Robots Hopped . | . . . Potential Cave-ins . | . . . Cave-ins Triggered . | . . . Exploration Rate (%) 34 | 5 66 32 Regions Visited 2 Branch Regions 1 Pre-discovered Areas . | . . . Known Exits Taken . | . . . Unknown Exits Taken 2 | 1 1 . Scrap Searched . | . . . Spaces Dug . | . . . Terrain Destroyed . | . . . Melee . | . . . Projectile . | . . . AOE . | . . . Terrain Rammed . | . . . Walls Destroyed . | . . . Machines Disabled . | . . . Actions | -11 -10 -10 --------- Run | Yrd Mat Min Total 820 | 52 653 115 Wait 82 | . 81 1 Move 632 | 42 480 110 Hop . | . . . Pick Up 9 | 4 5 . Fast Attach 7 | 6 1 . Attach 1 | . 1 . Detach . | . . . Swap 3 | . 3 . Drop 2 | . 2 . Fire 84 | . 80 4 Melee . | . . . Ram . | . . . Kick . | . . . Crush . | . . . Escape Stasis . | . . . Rewire . | . . . Trap . | . . . Miscellaneous . | . . . Route ------- -11/Scrapyard -10/Materials (discovered 3 exits: [*Mat] / [*Min] / [*Sub]) -10/Mines History --------- Turn | Location | Event 11 | -11/Scrapyard | Discovered new exit (range 13) 79 | -11/Scrapyard | Entered Materials 200 | -10/Materials | Discovered new exit (range 8) 251 | -10/Materials | Discovered new exit (range 5) 308 | -10/Materials | Build established: Mutant 579 | -10/Materials | Derelicts attacked the area 944 | -10/Materials | Core integrity fell below 50% 968 | -10/Materials | Discovered new exit (range 7) 1157 | -10/Materials | Entered Mines 1280 | -10/Mines | Met a Derelict bent on vengeance 1309 | -10/Mines | Assembled infested the area 1314 | -10/Mines | Assisted by a Guerilla fighting off Assembled 1343 | -10/Mines | Core integrity fell below 20% 1343 | -10/Mines | Destroyed by as-41750 with Assembled Blade Last Messages --------------- GOAL=ESCAPE Something is scanning the area. 01173_ System corrupted: Matter fused (-8). 01193_ System corrupted: Matter fused (-5). 01229_ PS8I&ID#DTBZTHJ|DNFTN/1A3=7EN%JGHI 01279_ System corrupted: Matter fused (-9). 01297_ CJ-TX7(g): "I WILL HAVE VENGEANCE!" 01302_ System corrupted: Component data lost. 01309_ ALERT: Infestation in the mines, dispatching Demolisher response squad. 01314_ A derelict emerges from the shadows: "You need to get out of here! I've been tracking a group of Assembled to figure out where they're coming from, and they're closing on this area, come on!" 01314_ K-01 Serf collects debris. 01329_ Lgt. Armor Plating destroyed. 01336_ Destroyed Asb. Hover Unit. 01337_ Ion Engine destroyed. 01338_ Lgt. Treads severed. 01340_ Lgt. Assault Rifle destroyed. Map ----- +----------------------------------------------------+ | | | | | ?????????????????????????????????????????????????? | | ?????????????????????????????####????????????????? | | ????????????????????????????## ##???????????????? | | ????????????????????????????# ##??????????????? | | ????????????????????????????# ##?????????????? | | ????????????????????????????## ##????????????? | | ?????????????????????####???## """ ##???????????? | | ????????????????????## ##### """ #???????????? | | ????????????????????# ## """ #????####???? | | ????????????????????# ##???## ##??? | | ????????????????????## ## ##???## #??? | | ?????????????????????# #### ####### ##?? | | ?????????????????????## ###??# #?# ##? | | ??????????????????????## ##????# ### #### ## | | ???????????????????????####?????# #?## # | | ????????????????????????????????# ####### | | ????????????????????????????????# #????# | | ????????????????????????????????# #????# | | ????????????????????????????????# #????# | | ????????????????????????????????# #????## ### | | ??????????????????#?????????????# #?????## ##?? | | ??????????????????# ############ #?####?# #??? | | ??????????????????# ?## ### ##??? | | ??????????????????# @a #????#?# ##???? | | ??????????????????########aa#??????# #????? | | ?????????????????????????# #??????## #????? | | ?????????????????????????# #??????## #????? | | ?????????????????????????# #???#### ##????? | | ?????????????? ## ### ##?## #?????? | | ????????????? ### #?????? | | ????????????????# ### #?????? | | ????????????????# ##?## #?????? | | ????????????????# #???## #?????? | | ????????????????# ##????## #?????? | | ????????????????# ## #??????# #?????? | | ????????????????## ## #?## #??????# ????? | | ?????????????????####?###???### #??????? ###???? | | ??????????????????????????????# #??????? #?????? | | ??????????????????????????????# #??????? #?????? | | ?????????????????????????????? #??????? %??????? | | ?????????????????????????????? #???????????????? | | ??????????????????????????????## ???????????????? | | ???????????????????????????????? ???????????????? | | ???????????????????????????????? ???????????????? | | ???????????????????????????????? ???????????????? | | ???????????????????????????????? ???????????????? | | ?????????????????????????????????????????????????? | | ?????????????????????????????????????????????????? | +----------------------------------------------------+ Best States ------------- Heat Dissipation 25 Energy Generation 10 Energy Capacity 250 Matter Stores 300 Matter Capacity 300 Sight Range 16 Terrain Scan Density 10 Armor Coverage 150 Evasion (%) 40 Recoil Reduction 2 Item Schematics ----------------- None Robot Schematics ------------------ None Fabricated ------------ Nothing Repaired ---------- Nothing Studied --------- None Alien Tech Used ----------------- None Achievements -------------- None Challenges ------------ None Game ------ Seed ScrapoidHackingField Manual? 0 Play Time 00:15:05 Cumulative 20.9 hours Start 2025.10.24 @ 23:19:52 End 2025.10.25 @ 00:12:49 Sessions 1 Manual Loads 0 Difficulty Rogue Special Mode None Game No. 19 Rogue 19 Adventurer 0 Explorer 0 Win Type - Total 0 Types 0/0/0/0/0/0/0/0/0/0 Lore% 9 Gallery% 22 Achievement% 11 Wizard Run 0 Options --------- Layout 0 ASCII 0 Keyboard 0 Movement Mouse Keybinds 1 Fullscreen 2 Font 24/Smallcaps Map View 76x50 Zoom Use 0% Tactical HUD 1 Map Filters NONE Filters NONE Steam 1 RUN: 9b6b5939-79ec-4e09-92d7-42ce88dc64a6